bitfinex/quotes_SOLUSD_20241127
["timestamp","ask_amount","ask_price","bid_price","bid_amount"]
[1732666326042,15.0004,232.32,232.23,118.2844444]
[1732666326043,13.36348071,232.28,232.23,118.2844444]
[1732666326340,13.36348071,232.28,232.17,15.075]
[1732666326341,13.36348071,232.25,232.18,131.64792511]
[1732666326548,13.36348071,232.28,232.2,13.36348071]
[1732666327043,13.36348071,232.26,232.2,13.36348071]
[1732666327212,13.36348071,232.26,232.21,4.3064]
[1732666328440,13.36348071,232.27,232.2,4.3066]
[1732666328938,13.36348071,232.29,232.21,13.36348071]
[1732666330041,13.36348071,232.27,232.2,4.3066]
[1732666330719,13.36348071,232.27,232.21,13.36348071]
[1732666331233,13.36348071,232.25,232.2,4.3066]
[1732666331434,13.36348071,232.21,232.18,4.3068]
[1732666331638,2.583,232.29,232.14,4.3077]
[1732666331639,13.36348071,232.19,232.14,4.3077]
[1732666331821,13.36348071,232.15,232.1,4.3084]
[1732666332645,13.36348071,232.13,232.1,4.3084]
[1732666333244,13.36348071,232.13,232.08,122.5930444]
[1732666333617,2.5841,232.19,232.08,122.5930444]
[1732666333829,13.36348071,232.13,232.08,122.5930444]
[1732666334674,13.36348071,232.14,232.08,122.5930444]
[1732666334953,23.776884,232.16,232.09,13.36348071]
[1732666335321,13.36348071,232.17,232.09,13.36348071]
[1732666335541,23.776884,232.18,232.11,13.36348071]
[1732666335845,37.14036471,232.18,232.11,13.36348071]
[1732666336053,13.36348071,232.17,232.1,13.36348071]
[1732666336245,13.36348071,232.18,232.1,131.64792511]
[1732666336728,13.36348071,232.18,232.11,4.3083]
[1732666337444,13.36348071,232.15,232.11,4.3083]
[1732666338551,13.36348071,232.19,232.11,17.67178071]
[1732666338938,15.4252,232.22,232.13,13.36348071]
[1732666338939,13.36348071,232.2,232.13,13.36348071]
[1732666339329,13.36348071,232.21,232.13,13.36348071]
[1732666339650,13.36348071,232.18,232.11,135.95622511]
[1732666339852,23.776884,232.2,232.11,135.95622511]
[1732666339853,13.36348071,232.17,232.11,4.3083]
[1732666341349,13.36348071,232.16,232.11,4.3083]
[1732666341749,23.776884,232.2,232.11,4.3083]
[1732666341750,13.36348071,232.15,232.11,4.3083]
[1732666342170,13.36348071,232.16,232.11,4.3083]
[1732666342364,23.776884,232.2,232.11,4.3083]
[1732666342365,13.36348071,232.17,232.11,4.3083]
[1732666342541,13.36348071,232.2,232.12,13.36348071]
[1732666342969,13.36348071,232.24,232.16,13.36348071]
[1732666343163,13.36348071,232.26,232.18,13.36348071]
[1732666343661,13.36348071,232.26,232.19,4.3068]
[1732666343870,13.36348071,232.29,232.21,13.36348071]
[1732666344368,13.36348071,232.25,232.19,4.3068]
[1732666344545,13.36348071,232.23,232.17,122.5914444]
[1732666345128,13.36348071,232.25,232.17,17.67048071]
[1732666346427,13.36348071,232.25,232.17,28.43838071]
[1732666347250,13.36348071,232.21,232.17,4.307]
[1732666347428,7.5829,232.29,232.17,4.307]
[1732666347429,13.36348071,232.2,232.17,4.307]
[1732666347629,13.36348071,232.21,232.15,4.3075]
[1732666347838,13.36348071,232.23,232.16,13.36348071]
[1732666348251,13.36348071,232.24,232.16,13.36348071]
[1732666348659,13.36348071,232.26,232.18,13.36348071]
[1732666349247,13.36348071,232.26,232.18,131.64792511]
[1732666349443,13.36348071,232.24,232.18,131.64792511]
[1732666349761,13.36348071,232.24,232.19,4.3068]
[1732666351545,13.36348071,232.26,232.19,4.3068]
[1732666352437,13.36348071,232.24,232.19,4.3068]
[1732666353239,13.36348071,232.26,232.19,4.3068]
[1732666353630,13.36348071,232.29,232.22,13.36348071]
[1732666353835,22.0082,232.35,232.24,13.36348071]
[1732666353836,13.36348071,232.31,232.24,13.36348071]
[1732666354039,22.0082,232.35,232.26,13.36348071]
[1732666354040,13.36348071,232.33,232.26,13.36348071]
[1732666354254,13.36348071,232.34,232.2,131.64792511]
[1732666354435,8.55189081,232.32,232.26,4.3055]
[1732666354631,8.55189081,232.3,232.26,4.3055]
[1732666356081,8.55189081,232.28,232.22,4.3062]
[1732666356460,13.36978815,232.28,232.21,4.3064]
[1732666358554,13.36978815,232.3,232.23,4.306]
[1732666358753,13.36978815,232.3,232.23,15.0711]
[1732666358939,13.36978815,232.3,232.24,13.36978815]
[1732666359164,13.36978815,232.3,232.23,4.306]
[1732666360467,23.776884,232.34,232.24,13.36978815]
[1732666360764,13.36978815,232.32,232.24,13.36978815]
[1732666361350,13.36978815,232.3,232.23,4.306]
[1732666361871,13.36978815,232.34,232.24,13.36978815]
[1732666362061,13.36978815,232.36,232.28,131.65423255]
[1732666362452,13.36978815,232.36,232.29,4.3049]
[1732666363171,13.36978815,232.34,232.29,122.5893444]
[1732666363465,13.36978815,232.32,232.27,122.5896444]
[1732666363870,18.2517,232.4,232.25,4.3055]
[1732666363871,13.36978815,232.28,232.25,4.3055]
[1732666364562,13.36978815,232.3,232.24,4.3058]
[1732666366086,13.36978815,232.32,232.24,28.44028815]
[1732666366243,13.36978815,232.34,232.26,13.36978815]
[1732666366762,13.36978815,232.32,232.24,146.72473255]
[1732666369472,13.36978815,232.34,232.24,146.72473255]
[1732666370544,13.36978815,232.34,232.26,13.36978815]
[1732666370873,13.36978815,232.4,232.32,13.36978815]
[1732666371665,4.30286559,232.52,232.36,13.36978815]
[1732666371866,4.30286559,232.52,232.35,138.2844444]
[1732666371867,13.36978815,232.48,232.38,13.36978815]
[1732666372248,13.36978815,232.46,232.38,13.36978815]
[1732666372764,13.36978815,232.46,232.39,4.3031]
[1732666373349,13.36978815,232.44,232.39,4.3031]
[1732666373960,13.36978815,232.44,232.38,4.3031]
[1732666374176,2.5804,232.52,232.38,4.3031]
[1732666374347,13.36978815,232.45,232.38,17.67288815]
[1732666376659,13.36978815,232.45,232.38,4.3031]
[1732666377152,13.36978815,232.43,232.38,4.3031]
[1732666377554,13.36978815,232.45,232.38,4.3031]
[1732666378858,13.36978815,232.42,232.36,4.3035]
[1732666379867,13.36978815,232.43,232.36,4.3035]
[1732666380379,8.54636245,232.43,232.36,12.84986245]
[1732666381081,8.54636245,232.43,232.36,4.3035]
[1732666381263,8.54636245,232.41,232.36,4.3035]
[1732666381664,8.54636245,232.42,232.36,4.3035]
[1732666381875,8.54636245,232.43,232.36,4.3035]
[1732666382970,8.54636245,232.42,232.34,12.85036245]
[1732666383759,8.54636245,232.43,232.34,4.304]
[1732666383973,8.54636245,232.43,232.35,8.54636245]
[1732666384275,6.0939,232.47,232.34,4.304]
[1732666384276,2.5808,232.49,232.37,8.54636245]
[1732666384577,8.54636245,232.44,232.37,8.54636245]
[1732666384755,8.54636245,232.46,232.37,8.54636245]
[1732666385454,8.54636245,232.44,232.35,8.54636245]
[1732666385655,8.54636245,232.44,232.35,12.85016245]
[1732666386078,8.54636245,232.46,232.39,8.54636245]
[1732666386457,8.54636245,232.46,232.37,8.54636245]
[1732666387064,8.54636245,232.46,232.38,4.3032]
[1732666387487,8.54636245,232.46,232.39,8.54636245]
[1732666387779,24.42806245,232.5,232.41,8.54636245]
[1732666388677,27.00866245,232.5,232.41,8.54636245]
[1732666388881,24.42806245,232.5,232.41,8.54636245]
[1732666389085,6.4497,232.57,232.46,4.3018]
[1732666389086,15.8817,232.57,232.46,4.3018]
[1732666389579,8.54636245,232.55,232.47,8.54636245]
[1732666389764,8.54636245,232.6,232.52,8.54636245]
[1732666390158,8.54636245,232.6,232.47,6.3617]
[1732666390359,8.54636245,232.58,232.51,8.54636245]
[1732666390771,8.54636245,232.59,232.52,8.54636245]
[1732666391162,5.0,232.63,232.53,12.84686245]
[1732666391475,13.54636245,232.63,232.53,12.84686245]
[1732666392286,5.0,232.63,232.57,20.0]
[1732666392484,5.0,232.63,232.62,13.32339847]
[1732666393278,5.0,232.63,232.62,17.62219847]
[1732666393874,5.0,232.63,232.62,147.12219847]
[1732666396982,5.0,232.63,232.62,133.7988]
[1732666397500,5.0,232.63,232.62,17.62219847]
[1732666398592,5.0,232.63,232.62,147.12219847]
[1732666403103,5.0,232.63,232.62,4.2988]
[1732666406383,5.0,232.63,232.62,133.7988]
[1732666412683,1.9636,232.63,232.62,133.7988]
[1732666414242,13.32339847,232.73,232.63,129.4999]
[1732666414405,13.32339847,232.73,232.65,13.32339847]
[1732666414879,13.32339847,232.73,232.66,4.2981]
[1732666415784,13.32339847,232.71,232.66,4.2981]
[1732666415984,13.32339847,232.71,232.64,4.2984]
[1732666416391,8.52632348,232.69,232.64,4.2984]
[1732666416892,8.52632348,232.7,232.64,4.2984]
[1732666417601,8.52632348,232.72,232.64,4.2984]
[1732666417791,8.52632348,232.7,232.64,4.2984]
[1732666418403,0.13,232.75,232.64,15.0446]
[1732666418697,13.32294795,232.72,232.64,17.62134795]
[1732666420101,45.357184,232.61,232.57,0.08817026]
[1732666420305,13.32294795,232.6,232.57,0.08817026]
[1732666420608,6.249,232.61,232.57,0.08817026]
[1732666420985,13.32294795,232.6,232.57,0.08817026]
[1732666422319,20.0,232.65,232.57,0.08817026]
[1732666422604,13.32294795,232.63,232.57,0.08817026]
[1732666423083,13.32294795,232.65,232.57,4.38787026]
[1732666423284,13.32294795,232.67,232.57,17.71081821]
[1732666423486,13.32294795,232.67,232.59,13.32294795]
[1732666423885,13.32294795,232.67,232.57,4.38787026]
[1732666424088,13.32294795,232.67,232.58,13.32294795]
[1732666424402,13.32294795,232.67,232.58,17.62234795]
[1732666427094,13.32294795,232.71,232.64,13.32294795]
[1732666427280,13.32294795,232.73,232.64,13.32294795]
[1732666427601,0.13,232.75,232.59,28.80417853]
[1732666427602,13.45294795,232.75,232.66,13.32294795]
[1732666427911,13.32294795,232.73,232.64,13.32294795]
[1732666430115,13.32294795,232.71,232.64,13.32294795]
[1732666430608,2.578,232.74,232.64,13.32294795]
[1732666430794,15.90094795,232.74,232.66,13.32294795]
[1732666432011,13.32294795,232.74,232.66,13.32294795]
[1732666432712,0.13,232.75,232.7,13.32294795]
[1732666434114,0.13,232.75,232.7,17.62024795]
[1732666435090,0.13,232.75,232.7,19.12024795]
[1732666435488,0.13,232.75,232.72,13.32294795]
[1732666437388,0.13,232.75,232.74,13.32294795]
[1732666437591,0.13,232.75,232.74,14.82294795]
[1732666438592,0.13,232.75,232.74,1.5]
[1732666438794,0.13,232.75,232.72,13.32294795]
[1732666439412,0.13,232.75,232.71,4.2971]
[1732666439605,0.5263778,232.77,232.76,13.32294795]
[1732666440595,0.5263778,232.77,232.76,37.09983195]
[1732666441522,0.5263778,232.77,232.76,42.89603195]
[1732666441697,0.5263778,232.77,232.74,4.2964]
[1732666441898,0.5263778,232.77,232.76,13.32294795]
[1732666444121,0.5263778,232.77,232.76,17.61914795]
[1732666449635,0.5263778,232.77,232.76,13.32294795]
[1732666451916,0.5263778,232.77,232.74,13.32294795]
[1732666453031,0.5263778,232.77,232.76,13.32294795]
[1732666456905,0.5263778,232.77,232.68,4.2977]
[1732666457227,0.5263778,232.77,232.73,13.32294795]
[1732666458330,3.1039778,232.77,232.71,13.32294795]
[1732666458504,13.32294795,232.76,232.69,13.32294795]
[1732666458911,16.42692575,232.77,232.63,10.7464]
[1732666459118,13.32294795,232.76,232.69,13.32294795]
[1732666460034,13.32294795,232.75,232.67,13.32294795]
[1732666460410,13.32294795,232.75,232.68,13.32294795]
[1732666460625,15.90084795,232.75,232.68,13.32294795]
[1732666460835,13.32294795,232.72,232.65,13.32294795]
[1732666461024,15.5077,232.73,232.66,13.32294795]
[1732666461525,15.5077,232.73,232.63,4.2985]
[1732666461526,15.5077,232.73,232.67,13.32294795]
[1732666461729,15.5077,232.73,232.69,13.32294795]
[1732666462028,15.5077,232.73,232.7,13.32294795]
[1732666462412,16.42702575,232.77,232.7,13.32294795]
[1732666462616,13.32294795,232.76,232.7,13.32294795]
[1732666463426,3.1040778,232.77,232.7,13.32294795]
[1732666465816,13.32294795,232.76,232.68,13.32294795]
[1732666466018,3.1040778,232.77,232.7,13.32294795]
[1732666467846,0.5263778,232.77,232.72,13.32294795]
[1732666468221,0.5263778,232.77,232.74,13.32294795]
[1732666468422,0.5263778,232.77,232.74,8.51816555]
[1732666469033,0.5263778,232.77,232.72,8.51816555]
[1732666469260,0.5263778,232.77,232.74,8.51816555]
[1732666469542,0.5263778,232.77,232.76,8.51816555]
[1732666470447,0.5263778,232.77,232.76,13.30512084]
[1732666471134,7.78e-05,232.77,232.76,17.60132084]
[1732666471445,7.78e-05,232.77,232.76,23.97502084]
[1732666471746,1.86394,232.88,232.81,20.0]
[1732666472042,1.86394,232.88,232.87,13.30512084]
[1732666473242,1.86394,232.88,232.87,4.2942]
[1732666474142,1.86394,232.88,232.87,17.59932084]
[1732666476734,1.86394,232.88,232.87,13.30512084]
[1732666478938,1.86394,232.88,232.85,13.30512084]
[1732666480255,1.86394,232.88,232.86,4.2944]
[1732666481777,1.86394,232.88,232.87,13.30512084]
[1732666482453,1.86394,232.88,232.85,13.30512084]
[1732666482757,1.86394,232.88,232.81,13.30512084]
[1732666483949,1.86394,232.88,232.81,17.60042084]
[1732666484342,1.86394,232.88,232.81,13.30512084]
[1732666485989,1.86394,232.88,232.81,17.60042084]
[1732666488035,1.86394,232.88,232.83,13.30512084]
[1732666490357,1.86394,232.88,232.82,4.2951]
[1732666491157,1.86394,232.88,232.83,13.30512084]
[1732666491363,1.86394,232.88,232.82,4.2951]
[1732666491947,1.86394,232.88,232.83,13.30512084]
[1732666492148,1.86394,232.88,232.85,13.30512084]
[1732666492447,1.86394,232.88,232.86,8.50848295]
[1732666493961,1.86394,232.88,232.86,12.80268295]
[1732666494340,1.86394,232.88,232.86,4.2942]
[1732666495645,1.86394,232.88,232.87,13.29539842]
[1732666498145,1.86394,232.88,232.87,17.58959842]
[1732666500466,1.86394,232.88,232.83,13.29539842]
[1732666501371,1.86394,232.88,232.85,13.29539842]
[1732666502881,1.86394,232.88,232.85,17.58989842]
[1732666503061,1.86394,232.88,232.85,4.2945]
[1732666503946,1.86394,232.88,232.84,4.2947]
[1732666504258,1.86394,232.88,232.82,4.2949]
[1732666504976,0.07989753,232.83,232.82,4.2949]
[1732666505354,0.07989753,232.83,232.77,13.29539842]
[1732666505553,0.07989753,232.83,232.77,17.59129842]
[1732666505982,0.07989753,232.83,232.79,13.29539842]
[1732666506165,0.07989753,232.83,232.77,17.59129842]
[1732666506474,0.07989753,232.83,232.75,17.59159842]
[1732666507074,13.29539842,232.82,232.75,4.2962]
[1732666507247,13.29539842,232.8,232.74,0.08810586]
[1732666507451,13.29539842,232.8,232.74,4.38460586]
[1732666507965,13.29539842,232.82,232.74,17.68000428]
[1732666508366,13.29539842,232.8,232.74,0.08810586]
[1732666508561,13.29539842,232.78,232.74,0.08810586]
[1732666509354,28.63399842,232.81,232.74,0.08810586]
[1732666509556,15.3386,232.81,232.75,13.29539842]
[1732666509760,15.3386,232.81,232.75,17.59179842]
[1732666509973,15.3386,232.81,232.76,13.29539842]
[1732666510364,0.07989753,232.83,232.78,13.29539842]
[1732666510762,0.07989753,232.83,232.77,13.29539842]
[1732666510964,0.07989753,232.83,232.78,13.29539842]
[1732666511481,0.07989753,232.83,232.8,13.29539842]
[1732666512063,0.07989753,232.83,232.79,4.2957]
[1732666512858,0.07989753,232.83,232.77,4.2959]
[1732666513064,13.29539842,232.82,232.74,17.68000428]
[1732666513778,13.29539842,232.82,232.75,13.29539842]
[1732666513977,0.07989753,232.83,232.77,13.29539842]
[1732666514275,0.07989753,232.83,232.78,13.29539842]
[1732666515573,0.07989753,232.83,232.8,13.29539842]
[1732666515792,0.07989753,232.83,232.76,17.59159842]
[1732666516157,0.07989753,232.83,232.78,13.29539842]
[1732666517582,0.07989753,232.83,232.79,4.2957]
[1732666518270,0.07989753,232.83,232.82,13.29539842]
[1732666518785,0.07989753,232.83,232.8,13.93961933]
[1732666518966,0.07989753,232.83,232.79,4.2957]
[1732666519679,2.65689753,232.83,232.76,0.64410696]
[1732666519888,13.37529595,232.83,232.75,17.59159842]
[1732666520373,0.07989753,232.83,232.77,13.29539842]
[1732666522366,0.07989753,232.83,232.78,4.2959]
[1732666523586,13.37529595,232.83,232.75,17.59179842]
[1732666525079,0.08208473,232.76,232.75,17.59179842]
[1732666525287,0.08208473,232.76,232.75,18.23609131]
[1732666525482,0.08208473,232.76,232.75,17.59179842]
[1732666527180,0.08208473,232.76,232.75,19.09179842]
[1732666527391,3.22e-05,232.77,232.76,6.20564014]
[1732666527566,3.22e-05,232.77,232.76,6.84975457]
[1732666527768,6.478e-05,232.8,232.79,20.0]
[1732666527982,6.478e-05,232.8,232.79,33.93946044]
[1732666529281,4.097e-05,232.81,232.8,20.0]
[1732666529489,8.357e-05,232.82,232.81,24.2953]
[1732666529674,8.357e-05,232.82,232.81,24.93930721]
[1732666531395,6.916e-05,232.84,232.83,20.0]
[1732666531568,6.916e-05,232.84,232.83,38.23424084]
[1732666532276,6.916e-05,232.84,232.83,37.59029842]
[1732666532669,6.916e-05,232.84,232.83,17.59029842]
[1732666533263,6.916e-05,232.84,232.83,13.29539842]
[1732666533667,6.916e-05,232.84,232.81,17.59049842]
[1732666533871,6.916e-05,232.84,232.81,4.2951]
[1732666534069,6.916e-05,232.84,232.79,13.29539842]
[1732666534376,6.916e-05,232.84,232.81,13.29539842]
[1732666534598,6.916e-05,232.84,232.83,13.29539842]
[1732666535281,6.916e-05,232.84,232.8,15.0343]
[1732666535282,6.916e-05,232.84,232.81,13.29539842]
[1732666535898,6.916e-05,232.84,232.79,13.29539842]
[1732666537395,6.916e-05,232.84,232.81,13.29539842]
[1732666538694,6.916e-05,232.84,232.83,13.29539842]
[1732666539188,6.916e-05,232.84,232.83,17.59029842]
[1732666542296,6.916e-05,232.84,232.83,12.80387282]
[1732666544987,0.08031505,232.84,232.83,12.80387282]
[1732666545501,0.08024589,232.84,232.83,12.80387282]
[1732666548693,0.08024589,232.84,232.83,4.2949]
[1732666549900,0.08024589,232.84,232.83,12.80387282]
[1732666550106,0.08024589,232.84,232.83,4.2949]
[1732666550601,0.08024589,232.84,232.78,4.2959]
[1732666550981,0.08024589,232.84,232.78,12.80487282]
[1732666551187,0.08024589,232.84,232.79,8.50897282]
[1732666551879,0.08024589,232.84,232.83,12.80387282]
[1732666556984,4.589e-05,232.84,232.83,12.80387282]
[1732666560105,4.589e-05,232.84,232.83,14.30387282]
[1732666561586,1.8834436,232.88,232.86,20.0]
[1732666561903,1.78920451,232.88,232.87,9.15282992]
[1732666562083,1.78920451,232.88,232.87,8.50897282]
[1732666563099,1.78920451,232.88,232.87,12.80317282]
[1732666564992,1.87636472,232.88,232.87,12.80317282]
[1732666565191,1.87636472,232.88,232.87,4.2942]
[1732666565411,1.79079063,232.88,232.87,12.80317282]
[1732666565817,1.79079063,232.88,232.84,0.6438571]
[1732666566001,1.79079063,232.88,232.86,8.50897282]
[1732666566512,1.79079063,232.88,232.81,4.2952]
[1732666566688,1.79079063,232.88,232.84,4.2947]
[1732666567085,1.79079063,232.88,232.85,8.50897282]
[1732666568386,1.79079063,232.88,232.86,4.2944]
[1732666570914,1.79079063,232.88,232.79,13.57416057]
[1732666571117,1.79079063,232.88,232.8,4.2955]
[1732666571408,1.79079063,232.88,232.81,8.50897282]
[1732666571803,1.79079063,232.88,232.8,4.2955]
[1732666572010,1.79079063,232.88,232.82,8.50897282]
[1732666572195,3.21525736,232.87,232.82,8.50897282]
[1732666572398,1.79079063,232.88,232.82,8.50897282]
[1732666572711,3.21576751,232.87,232.82,8.50897282]
[1732666573311,1.79079063,232.88,232.82,8.50897282]
[1732666573624,3.21609546,232.87,232.82,8.50897282]
[1732666574011,3.2161564,232.86,232.82,8.50897282]
[1732666574322,6.93654234,232.88,232.81,4.2953]
[1732666574513,6.93654234,232.88,232.78,4.2958]
[1732666574514,27.06458465,232.87,232.78,4.2958]
[1732666574719,3.21591183,232.86,232.79,8.50897282]
[1732666575419,3.21591183,232.86,232.79,12.80457282]
[1732666575812,23.84867282,232.87,232.79,12.80457282]
[1732666576001,3.21562585,232.86,232.79,12.80457282]
[1732666576724,3.21562585,232.86,232.77,0.08809451]
[1732666577016,8.50897282,232.81,232.77,0.08809451]
[1732666577598,5.14398951,232.84,232.77,0.08809451]
[1732666577599,23.776884,232.83,232.77,0.08809451]
[1732666577828,3.21506853,232.82,232.77,0.08809451]
[1732666578001,3.21506853,232.81,232.78,12.80487282]
[1732666578206,8.50897282,232.87,232.78,12.80487282]
[1732666578521,8.50897282,232.83,232.77,0.08809451]
[1732666578718,24.65807282,232.83,232.77,0.08809451]
[1732666579528,16.1491,232.83,232.79,8.50897282]
[1732666579701,16.1491,232.83,232.81,8.50897282]
[1732666580019,17.93989063,232.88,232.81,8.50897282]
[1732666580197,3.21305489,232.87,232.81,8.50897282]
[1732666581337,3.21305489,232.87,232.81,12.80417282]
[1732666581924,3.21305489,232.87,232.79,12.80447282]
[1732666582234,8.50897282,232.85,232.79,4.2955]
[1732666582721,8.50897282,232.85,232.77,12.89296733]
[1732666583114,3.21289117,232.84,232.77,12.89296733]
[1732666583313,8.50897282,232.85,232.77,12.89296733]
[1732666583505,3.2127468,232.84,232.79,8.50897282]
[1732666583829,5.14062587,232.87,232.81,8.50897282]
[1732666584015,3.2125768,232.86,232.81,8.50897282]
[1732666584198,3.2124131,232.85,232.83,8.50897282]
[1732666584404,6.93065159,232.88,232.83,8.50897282]
[1732666584705,3.21243782,232.87,232.84,4.2947]
[1732666584916,0.08847636,232.85,232.84,4.2947]
[1732666585124,3.30091418,232.85,232.84,4.2947]
[1732666585626,0.08847636,232.85,232.84,4.2947]
[1732666588130,0.08847636,232.85,232.83,4.2949]
[1732666588331,0.08847636,232.85,232.81,5.7951]
[1732666588523,0.08847636,232.85,232.81,1.5]
[1732666588733,8.50897282,232.82,232.77,0.08809451]
[1732666589641,0.08847636,232.85,232.77,4.38399451]
[1732666589930,8.59744918,232.85,232.78,8.50897282]
[1732666590138,0.08847636,232.85,232.8,8.50897282]
[1732666590309,0.08847636,232.85,232.78,8.50897282]
[1732666591040,8.59744918,232.85,232.78,8.50897282]
[1732666591344,8.59744918,232.85,232.77,4.38399451]
[1732666592124,8.50897282,232.83,232.77,0.08809451]
[1732666592850,0.08847636,232.85,232.78,4.2959]
[1732666593021,8.50897282,232.84,232.77,0.08809451]
[1732666593220,3.21175411,232.83,232.77,0.08809451]
[1732666593519,8.50897282,232.84,232.77,0.08809451]
[1732666593732,3.21143472,232.83,232.77,0.08809451]
[1732666593936,11.72040754,232.82,232.77,0.08809451]
[1732666594130,8.50897282,232.82,232.77,0.08809451]
[1732666595545,3.21090579,232.81,232.77,0.08809451]
[1732666595852,8.50897282,232.82,232.77,0.08809451]
[1732666596842,8.50897282,232.8,232.77,0.08809451]
[1732666597041,3.21073162,232.79,232.77,0.08809451]
[1732666597241,3.21073162,232.78,232.77,0.08809451]
[1732666597439,8.50897282,232.8,232.77,0.08809451]
[1732666597643,3.20969047,232.79,232.77,0.08809451]
[1732666597838,3.20969047,232.78,232.77,0.08809451]
[1732666598547,8.50897282,232.78,232.77,0.08809451]
[1732666598739,19.29616329,232.78,232.77,0.08809451]
[1732666599057,23.776884,232.77,232.6,17.2262]
[1732666599357,8.50897282,232.7,232.67,4.2978]
[1732666599529,5.13550475,232.76,232.65,8.50897282]
[1732666599733,8.50897282,232.71,232.67,4.2978]
[1732666600946,8.50897282,232.71,232.61,0.08256039]
[1732666601148,8.50897282,232.7,232.64,4.2983]
[1732666601452,8.50897282,232.7,232.62,8.50897282]
[1732666602137,5.13550475,232.75,232.68,8.50897282]
[1732666602349,3.20128854,232.74,232.69,7.2975]
[1732666602650,8.50897282,232.75,232.69,3.0]
[1732666602837,3.20132962,232.74,232.69,3.0]
[1732666603450,8.50897282,232.75,232.69,7.2974]
[1732666604326,15.1571,232.78,232.69,7.2974]
[1732666604327,8.50897282,232.73,232.69,3.0]
[1732666604548,8.50897282,232.71,232.69,3.0]
[1732666604855,11.08727282,232.71,232.69,3.0]
[1732666605024,0.09161343,232.7,232.69,3.0]
[1732666607230,63.01781386,232.7,232.69,3.0]
[1732666607448,63.01781386,232.7,232.61,0.08256039]
[1732666607449,5.0,232.64,232.61,0.08256039]
[1732666607760,8.50897282,232.62,232.61,0.08256039]
[1732666608150,11.70693587,232.62,232.61,0.08256039]
[1732666608452,11.08827282,232.62,232.61,0.08256039]
[1732666608849,8.50897282,232.62,232.61,0.08256039]
[1732666609239,2.5791,232.64,232.61,0.08256039]
[1732666609240,5.1125929,232.64,232.61,0.08256039]
[1732666609446,8.50897282,232.63,232.61,0.08256039]
[1732666610329,13.50897282,232.63,232.61,0.08256039]
[1732666610566,2.5793,232.62,232.61,0.08256039]
[1732666610860,5.76970823,232.62,232.61,0.08256039]
[1732666611060,29.54659223,232.62,232.61,0.08256039]
[1732666611241,29.54659223,232.62,232.5,4.3009]
[1732666611440,8.50897282,232.56,232.5,4.3009]
[1732666612235,8.50897282,232.52,232.46,4.3016]
[1732666613051,8.50897282,232.54,232.47,8.50897282]
[1732666613258,8.50897282,232.56,232.49,8.50897282]
[1732666613458,22.4431,232.59,232.52,8.50897282]
[1732666613673,8.50897282,232.6,232.52,8.50897282]
[1732666613841,15.9924,232.64,232.56,8.50897282]
[1732666614047,8.50897282,232.66,232.58,8.50897282]
[1732666614445,8.50897282,232.64,232.59,4.2994]
[1732666614948,8.50897282,232.66,232.59,4.2994]
[1732666615266,2.5786,232.69,232.55,4.3001]
[1732666615267,8.50897282,232.64,232.55,4.3001]
[1732666615467,8.50897282,232.64,232.55,12.80907282]
[1732666616363,13.32850601,232.64,232.56,13.32850601]
[1732666617165,13.32850601,232.66,232.58,13.32850601]
[1732666618164,13.32850601,232.66,232.58,17.62800601]
[1732666618357,13.32850601,232.64,232.56,17.62830601]
[1732666619166,13.32850601,232.66,232.58,13.32850601]
[1732666619843,13.32850601,232.66,232.56,17.62830601]
[1732666620049,13.32850601,232.64,232.56,17.62830601]
[1732666620266,13.32850601,232.64,232.52,13.32850601]
[1732666620267,13.32850601,232.6,232.52,13.32850601]
[1732666620443,2.5791,232.64,232.52,4.3005]
[1732666620444,13.32850601,232.58,232.52,4.3005]
[1732666620650,13.32850601,232.56,232.5,5.88349945]
[1732666621276,13.32850601,232.56,232.5,4.38349945]
[1732666621569,13.32850601,232.54,232.5,0.08259945]
[1732666621754,23.776884,232.63,232.52,13.32850601]
[1732666622071,13.32850601,232.6,232.52,17.62910601]
[1732666622368,19.77510601,232.68,232.52,17.62910601]
[1732666622369,13.32850601,232.66,232.58,13.32850601]
[1732666623267,13.32850601,232.64,232.56,13.32850601]
[1732666623446,13.32850601,232.64,232.56,17.62830601]
[1732666624062,13.32850601,232.62,232.54,13.32850601]
[1732666624649,7.5788,232.66,232.56,13.32850601]
[1732666624650,13.32850601,232.64,232.56,13.32850601]
[1732666624959,13.32850601,232.64,232.53,20.8958]
[1732666624960,0.08473085,232.57,232.54,13.32850601]
[1732666625168,0.08473085,232.57,232.53,4.3004]
[1732666626164,0.08473085,232.57,232.54,13.32850601]
[1732666627384,0.08473085,232.57,232.53,4.3004]
[1732666627758,0.08473085,232.57,232.52,17.62910601]
[1732666629251,0.08473085,232.57,232.54,13.32850601]
[1732666629454,0.08473085,232.57,232.56,13.32850601]
[1732666629963,0.08473085,232.57,232.54,13.32850601]
[1732666630762,0.08473085,232.57,232.56,13.32850601]